bitfinex/quotes_SOLUSD_20250310
["timestamp","ask_amount","ask_price","bid_price","bid_amount"]
[1741631499371,73.39901853,119.18,119.12,73.39901853]
[1741631499865,311.71901853,119.22,119.17,73.39901853]
[1741631500061,222.14,119.22,119.2,73.39901853]
[1741631500239,222.14,119.22,119.14,0.28432314]
[1741631500240,222.14,119.22,119.19,73.39901853]
[1741631500446,222.14,119.22,119.18,73.39901853]
[1741631500843,222.14,119.22,119.17,73.39901853]
[1741631501168,222.14,119.22,119.19,73.39901853]
[1741631501669,222.14,119.22,119.17,81.78971853]
[1741631501852,298.89411853,119.22,119.17,81.78971853]
[1741631502053,222.14,119.22,119.17,81.78971853]
[1741631502253,222.14,119.22,119.18,73.39901853]
[1741631502442,295.53901853,119.22,119.17,81.78971853]
[1741631502648,222.14,119.22,119.17,81.78971853]
[1741631502864,298.89421853,119.22,119.17,8.3907]
[1741631503074,73.39901853,119.19,119.13,8.3941]
[1741631503366,73.39901853,119.2,119.14,73.39901853]
[1741631503560,73.39901853,119.2,119.15,73.39901853]
[1741631503761,73.39901853,119.18,119.12,183.99901853]
[1741631503971,73.39901853,119.15,119.11,0.063]
[1741631504149,73.39901853,119.13,119.11,0.063]
[1741631504351,89.13901853,119.12,119.1,0.063]
[1741631504648,73.39901853,119.11,119.1,0.063]
[1741631504847,15.74,119.12,119.1,0.063]
[1741631505241,19.0979,119.12,119.1,0.063]
[1741631505860,92.49691853,119.12,119.1,0.063]
[1741631506063,89.13901853,119.12,119.1,0.063]
[1741631506279,222.2,119.13,119.1,0.063]
[1741631506451,225.5577,119.13,119.1,0.063]
[1741631506652,298.95671853,119.13,119.1,0.063]
[1741631507265,73.39901853,119.12,119.1,0.063]
[1741631507474,93.39901853,119.11,119.1,0.063]
[1741631507893,20.0,119.11,119.1,0.063]
[1741631508203,93.39901853,119.11,119.1,0.063]
[1741631508367,108.97901853,119.11,119.1,0.063]
[1741631508766,35.58,119.11,119.1,0.063]
[1741631508980,112.33721853,119.11,119.1,0.063]
[1741631509154,15.58,119.11,119.1,0.063]
[1741631509358,0.15130578,119.11,119.1,0.063]
[1741631509658,0.15130578,119.11,119.1,73.46201853]
[1741631511783,0.15130578,119.11,119.1,81.85831853]
[1741631512463,0.15130578,119.11,119.1,284.79130906]
[1741631513272,5.78e-06,119.11,119.1,284.79130906]
[1741631513477,9.554e-05,119.12,119.11,0.28432314]
[1741631513679,9.554e-05,119.12,119.11,202.93299053]
[1741631514057,9.554e-05,119.12,119.11,184.28334167]
[1741631515159,9.554e-05,119.12,119.11,183.99901853]
[1741631515366,9.554e-05,119.12,119.11,192.39461853]
[1741631516090,9.554e-05,119.12,119.11,192.67894167]
[1741631516273,9.554e-05,119.12,119.11,211.32859053]
[1741631518160,6.122e-05,119.13,119.12,18.64964886]
[1741631518360,5.64e-05,119.14,119.12,204.19173915]
[1741631518560,5.64e-05,119.14,119.13,92.04866739]
[1741631518765,9.096e-05,119.15,119.14,0.28432314]
[1741631518989,9.096e-05,119.15,119.14,73.68334167]
[1741631519185,6.53e-06,119.16,119.14,73.68334167]
[1741631519361,6.53e-06,119.16,119.15,73.39901853]
[1741631519563,6.53e-06,119.16,119.15,81.79171853]
[1741631519762,6.53e-06,119.16,119.15,8.3927]
[1741631519976,6.53e-06,119.16,119.14,73.39901853]
[1741631520292,6.53e-06,119.16,119.13,118.9938]
[1741631520597,6.53e-06,119.16,119.13,81.79281853]
[1741631520762,6.53e-06,119.16,119.14,73.39901853]
[1741631520962,0.03000653,119.16,119.14,73.39901853]
[1741631521189,0.03000653,119.16,119.15,73.39901853]
[1741631521365,0.03000653,119.16,119.13,29.3792]
[1741631521571,0.03000653,119.16,119.14,73.39901853]
[1741631521885,0.03000653,119.16,119.15,73.39901853]
[1741631522587,0.03000653,119.16,119.13,20.9854]
[1741631522783,0.03000653,119.16,119.15,73.39901853]
[1741631523182,0.03000653,119.16,119.12,8.3948]
[1741631523396,73.39901853,119.15,119.1,0.063]
[1741631523690,0.03000653,119.16,119.12,73.39901853]
[1741631523877,0.03000653,119.16,119.14,73.39901853]
[1741631524283,0.03000653,119.16,119.12,73.39901853]
[1741631524476,73.42902506,119.16,119.11,73.39901853]
[1741631524677,0.03000653,119.16,119.11,73.39901853]
[1741631524886,73.39901853,119.14,119.1,0.063]
[1741631525067,73.39901853,119.12,119.1,0.063]
[1741631525278,89.4637,119.15,119.1,0.063]
[1741631525503,162.86271853,119.15,119.1,73.46201853]
[1741631525811,162.86271853,119.15,119.11,8.3956]
[1741631525986,73.39901853,119.13,119.1,0.063]
[1741631526494,93.39901853,119.11,119.1,0.063]
[1741631526791,107.99901853,119.11,119.1,0.063]
[1741631527175,14.6,119.11,119.1,8.4593]
[1741631527591,14.6,119.11,119.1,0.063]
[1741631528219,87.99901853,119.11,119.1,0.063]
[1741631528395,14.6,119.11,119.1,0.063]
[1741631529095,87.99901853,119.11,119.1,0.063]
[1741631529407,88.16780142,119.11,119.1,0.063]
[1741631530699,110.17565028,119.11,119.1,0.063]
[1741631530900,110.17565028,119.11,119.06,0.063]
[1741631530901,20.0,119.08,119.06,0.063]
[1741631531081,73.39901853,119.07,119.06,0.063]
[1741631531804,73.39901853,119.07,119.04,0.063]
[1741631531805,38.64964886,119.05,119.04,0.063]
[1741631531990,87.79901853,119.05,118.98,8.4677]
[1741631532197,93.39901853,119.03,118.98,8.4677]
[1741631532507,87.79901853,119.05,119.0,73.39901853]
[1741631532689,14.4,119.05,119.01,73.39901853]
[1741631532895,14.4,119.05,119.02,73.39901853]
[1741631533279,87.79901853,119.05,119.0,73.39901853]
[1741631533479,73.39901853,119.04,118.99,73.39901853]
[1741631533796,87.79901853,119.05,119.0,94.40741853]
[1741631534171,73.39901853,119.04,118.99,8.404]
[1741631534408,73.39901853,119.03,118.99,8.404]
[1741631534581,14.4,119.05,118.99,81.80301853]
[1741631534780,73.39901853,119.04,118.99,81.80301853]
[1741631535094,73.39901853,119.04,118.99,8.404]
[1741631535294,73.39901853,119.02,118.98,0.063]
[1741631535608,73.39901853,119.0,118.98,0.063]
[1741631535897,222.42,119.02,118.98,0.063]
[1741631535898,93.39901853,118.99,118.98,0.063]
[1741631536195,73.39901853,119.0,118.98,0.063]
[1741631536397,73.39901853,118.99,118.98,0.063]
[1741631536916,99.92886739,118.99,118.98,0.063]
[1741631537324,81.27921853,118.99,118.98,0.063]
[1741631538115,73.39901853,118.99,118.98,0.063]
[1741631538399,169.09360906,118.99,118.98,0.063]
[1741631538725,73.39901853,118.95,118.94,0.063]
[1741631538890,73.39901853,118.97,118.94,0.063]
[1741631539210,73.39901853,118.96,118.94,0.063]
[1741631539408,73.39901853,118.95,118.94,0.063]
[1741631539602,92.04866739,118.95,118.94,0.063]
[1741631539814,23.3633,118.93,118.92,0.063]
[1741631540111,507.63530906,118.93,118.92,0.063]
[1741631540407,73.39901853,118.89,118.88,0.063]
[1741631545895,76.76341853,118.89,118.88,0.063]
[1741631546403,20.0,118.86,118.81,8.4795]
[1741631546602,73.39901853,118.82,118.81,0.063]
[1741631547605,296.05901853,118.83,118.81,8.4797]
[1741631547997,73.39901853,118.82,118.81,0.063]
[1741631549316,0.18285679,118.82,118.81,0.063]
[1741631549523,73.58187532,118.82,118.81,0.063]
[1741631550028,0.18285679,118.82,118.81,0.063]
[1741631550201,0.18285679,118.82,118.81,82.16304167]
[1741631551413,0.18285679,118.82,118.81,8.76402314]
[1741631551581,5.679e-05,118.82,118.81,100.81269053]
[1741631551782,5.679e-05,118.82,118.81,82.16304167]
[1741631551983,5.679e-05,118.82,118.81,100.81269053]
[1741631552387,3.429e-05,118.83,118.82,18.933972]
[1741631552589,6.189e-05,118.84,118.82,92.33299053]
[1741631552799,6.189e-05,118.84,118.83,92.04866739]
[1741631554011,6.189e-05,118.84,118.83,73.39901853]
[1741631554326,6.189e-05,118.84,118.83,82.09864167]
[1741631554904,6.189e-05,118.84,118.82,8.4158]
[1741631555089,6.189e-05,118.84,118.81,8.4794]
[1741631555406,73.39908042,118.84,118.81,8.4794]
[1741631555708,6.189e-05,118.84,118.81,29.5215]
[1741631556204,6.189e-05,118.84,118.81,102.92051853]
[1741631556511,6.189e-05,118.84,118.83,73.74634167]
[1741631556713,0.03006189,118.84,118.83,73.74634167]
[1741631556908,0.03006189,118.84,118.83,0.063]
[1741631557290,0.03006189,118.84,118.83,73.46201853]
[1741631557521,0.03006189,118.84,118.83,0.063]
[1741631558381,0.03006189,118.84,118.83,8.4783]
[1741631559806,0.03006189,118.84,118.83,0.063]
[1741631560193,73.42908042,118.84,118.83,0.063]
[1741631561115,87.22908042,118.84,118.83,0.063]
[1741631562218,105.87872928,118.84,118.83,0.063]
[1741631562413,90.59488042,118.84,118.83,0.063]
[1741631562712,87.22908042,118.84,118.83,0.063]
[1741631563021,116.57645242,118.84,118.83,0.063]
[1741631563404,73.68334167,118.82,118.81,0.063]
[1741631563602,92.33299053,118.82,118.81,0.063]
[1741631564618,95.69939053,118.82,118.81,0.063]
[1741631565312,95.69939053,118.82,118.76,0.063]
[1741631565313,20.0,118.78,118.76,0.063]
[1741631565517,20.0,118.79,118.76,0.063]
[1741631565518,328.64866739,118.77,118.76,0.063]
[1741631566114,236.6,118.77,118.76,0.063]
[1741631566723,222.9,118.77,118.76,0.063]
[1741631566927,318.31646739,118.77,118.76,0.063]
[1741631567129,296.29901853,118.77,118.76,0.063]
[1741631567327,222.9,118.77,118.76,0.063]
[1741631569330,223.08104158,118.77,118.76,0.063]
[1741631570104,223.08104158,118.77,118.76,73.46201853]
[1741631570430,223.08104158,118.77,118.76,0.063]
[1741631571200,223.08104158,118.77,118.76,73.46201853]
[1741631571427,223.08104158,118.77,118.76,0.063]
[1741631572122,223.08104158,118.77,118.76,73.46201853]
[1741631572457,318.78183211,118.77,118.76,0.063]
[1741631572622,20.0,118.74,118.71,0.063]
[1741631572947,73.39901853,118.72,118.71,0.063]
[1741631573146,93.39901853,118.73,118.71,0.063]
[1741631573353,92.04866739,118.72,118.71,0.063]
[1741631573516,92.33299053,118.72,118.71,0.063]
[1741631575342,95.70219053,118.72,118.71,0.063]
[1741631576649,95.70219053,118.72,118.6,73.39901853]
[1741631576650,20.0,118.67,118.6,73.39901853]
[1741631576831,73.39901853,118.64,118.59,73.68334167]
[1741631577017,93.39901853,118.63,118.58,73.46201853]
[1741631577235,73.39901853,118.64,118.59,73.39901853]
[1741631577492,18.64964886,118.65,118.58,0.063]
[1741631577493,20.0,118.6,118.58,0.063]
[1741631577655,73.39901853,118.64,118.59,73.39901853]
[1741631578132,73.39901853,118.65,118.6,73.39901853]
[1741631578450,73.39901853,118.65,118.59,73.39901853]
[1741631578647,73.39901853,118.65,118.6,73.68334167]
[1741631578819,309.87901853,118.66,118.61,73.39901853]
[1741631579020,236.48,118.66,118.62,73.39901853]
[1741631579430,223.02,118.66,118.65,73.39901853]
[1741631579639,223.02,118.66,118.65,73.68334167]
[1741631579840,223.02,118.66,118.65,73.39901853]
[1741631580462,226.391,118.66,118.62,73.39901853]
[1741631580629,223.02,118.66,118.63,73.39901853]
[1741631580953,223.02,118.66,118.64,73.39901853]
[1741631581344,223.02,118.66,118.62,73.68334167]
[1741631581691,223.02,118.66,118.62,82.11334167]
[1741631582057,223.02,118.66,118.6,7.64166157]
[1741631582058,73.39901853,118.65,118.6,0.14216157]
[1741631582266,73.39901853,118.65,118.58,110.663]
[1741631582267,73.39901853,118.63,118.58,81.89441853]
[1741631582457,73.39901853,118.63,118.58,8.4954]
[1741631582646,13.5,118.64,118.58,0.063]
[1741631582647,73.39901853,118.61,118.58,0.063]
[1741631582965,73.39901853,118.63,118.58,81.89491853]
[1741631583125,93.39901853,118.61,118.58,0.063]
[1741631583450,73.39901853,118.6,118.58,0.063]
[1741631583674,73.39901853,118.59,118.58,0.063]
[1741631583858,13.58,118.6,118.58,0.063]
[1741631584030,73.39901853,118.59,118.58,0.063]
[1741631584227,13.58,118.6,118.58,0.063]
[1741631584538,86.97901853,118.6,118.58,0.063]
[1741631584737,13.58,118.6,118.58,0.063]
[1741631584937,86.97901853,118.6,118.58,0.063]
[1741631585239,13.58,118.6,118.58,0.063]
[1741631585659,73.39901853,118.59,118.58,0.063]
[1741631586255,92.04866739,118.59,118.58,0.063]
[1741631586457,92.33299053,118.59,118.58,0.063]
[1741631586635,173.84866739,118.59,118.58,0.063]
[1741631587143,174.13299053,118.59,118.58,0.063]
[1741631587348,177.50589053,118.59,118.58,0.063]
[1741631588237,14.0,118.6,118.58,0.063]
[1741631588565,73.39901853,118.59,118.58,0.063]
[1741631589126,92.33299053,118.59,118.58,0.063]
[1741631589333,95.88881781,118.59,118.58,0.063]
[1741631589538,92.23159467,118.59,118.58,0.063]
[1741631589736,91.21484581,118.59,118.58,0.063]
[1741631590257,87.84194581,118.59,118.58,0.063]
[1741631590653,91.21484581,118.59,118.58,0.063]
[1741631590962,110.14881781,118.59,118.58,0.063]
[1741631591163,110.14881781,118.59,118.58,0.0001]
[1741631591371,0.28432314,118.57,118.56,0.063]
[1741631591530,373.7358602,118.57,118.56,0.063]
[1741631591730,300.33684167,118.57,118.56,0.063]
[1741631591932,373.7358602,118.57,118.56,0.063]
[1741631592157,395.92000906,118.57,118.56,0.063]
[1741631592646,18.64964886,118.53,118.46,0.063]
[1741631592848,73.39901853,118.5,118.46,0.063]
[1741631593034,73.39901853,118.49,118.46,0.063]
[1741631593436,73.39901853,118.48,118.46,0.063]
[1741631593638,73.39901853,118.49,118.46,0.063]
[1741631594175,14.36,118.52,118.48,73.39901853]
[1741631594453,73.39901853,118.51,118.46,0.34732314]
[1741631594631,73.39901853,118.51,118.45,110.663]
[1741631594632,2.0,118.44,118.43,0.063]
[1741631594833,18.933972,118.39,118.38,0.03]
[1741631595065,38.64964886,118.36,118.33,0.063]
[1741631595240,20.0,118.32,118.3,0.063]
[1741631595441,73.39901853,118.31,118.3,0.063]
[1741631595957,87.73901853,118.31,118.3,0.063]
[1741631597948,14.34,118.31,118.3,0.063]
[1741631598154,73.39901853,118.33,118.3,0.063]
[1741631598379,223.34,118.35,118.31,0.28432314]
[1741631598380,296.73901853,118.35,118.31,0.28432314]
[1741631598657,73.39901853,118.34,118.3,18.996972]
[1741631598862,73.39901853,118.35,118.3,92.39599053]
[1741631599064,86.26874889,118.34,118.3,0.34732314]
[1741631599244,12.86973036,118.34,118.3,62.92958346]
[1741631599565,86.26874889,118.34,118.28,63.60516157]
[1741631599766,86.26874889,118.34,118.29,73.39901853]
[1741631599951,12.86973036,118.34,118.3,73.39901853]
[1741631600258,12.86973036,118.34,118.31,73.39901853]
[1741631600452,87.83901853,118.37,118.32,73.39901853]
[1741631600656,73.39901853,118.36,118.3,73.39901853]
[1741631600852,73.39901853,118.34,118.28,0.14216157]
[1741631601059,73.39901853,118.34,118.29,73.39901853]
[1741631601292,73.39901853,118.32,118.28,0.14216157]
[1741631601585,14.44,118.31,118.24,0.14216157]
[1741631601770,14.44,118.31,118.21,73.39901853]
[1741631601771,73.39901853,118.26,118.21,73.39901853]
[1741631601992,20.0,118.27,118.17,6.7687]
[1741631602330,73.39901853,118.18,118.13,81.86421853]
[1741631602714,73.39901853,118.17,118.12,63.463]
[1741631602906,93.39901853,118.16,118.12,63.463]
[1741631603155,73.39901853,118.18,118.12,73.39901853]
[1741631603361,18.64964886,118.18,118.13,73.39901853]
[1741631603579,15.04,118.19,118.14,73.39901853]
[1741631603783,297.01901853,118.21,118.16,73.39901853]
[1741631604070,223.62,118.21,118.18,73.39901853]
[1741631604280,20.0,118.2,118.15,0.17216157]
[1741631604440,20.0,118.2,118.15,0.03]
[1741631604640,227.1632,118.23,118.16,73.39901853]
[1741631604868,227.1632,118.23,118.15,20.03]
[1741631604869,223.78,118.23,118.18,73.39901853]
[1741631605063,223.78,118.23,118.21,73.39901853]
[1741631605271,73.39901853,118.29,118.23,0.14216157]
[1741631605517,73.39901853,118.31,118.26,73.39901853]
[1741631605763,3.3806,118.32,118.27,73.39901853]
[1741631605962,223.78,118.34,118.3,73.39901853]
[1741631606169,227.1601,118.34,118.27,63.463]
[1741631606346,227.1601,118.34,118.25,73.39901853]
[1741631606347,73.39901853,118.31,118.25,73.39901853]
[1741631606557,73.39901853,118.33,118.27,73.39901853]
[1741631606871,20.0,118.3,118.21,0.14216157]
[1741631607065,20.0,118.31,118.27,73.39901853]
[1741631607271,20.0,118.31,118.24,137.0041801]
[1741631607568,73.39901853,118.28,118.23,73.39901853]
[1741631607750,76.78081853,118.28,118.22,73.39901853]
[1741631607957,73.39901853,118.32,118.24,20.0]
[1741631608268,297.17901853,118.34,118.26,73.68334167]
[1741631608467,223.78,118.34,118.29,73.39901853]
[1741631608654,223.78,118.34,118.31,73.39901853]
[1741631608841,223.78,118.34,118.32,73.39901853]
[1741631609046,223.78,118.34,118.31,73.39901853]
[1741631609469,0.16366533,118.33,118.32,73.39901853]
[1741631609760,0.16366533,118.33,118.3,73.39901853]
[1741631609961,3.54426533,118.33,118.27,0.14216157]
[1741631610173,85.39418386,118.33,118.25,20.0]
[1741631610360,85.39418386,118.33,118.27,73.39901853]
[1741631610561,0.16366533,118.33,118.26,140.41441379]
[1741631610777,0.16366533,118.33,118.28,0.14216157]
[1741631610944,0.16366533,118.33,118.32,73.39901853]
[1741631611949,3.54396533,118.33,118.29,73.39901853]
[1741631612663,73.39901853,118.32,118.27,73.39901853]
[1741631613171,0.16366533,118.33,118.3,73.39901853]
[1741631613356,3.54396533,118.33,118.3,73.39901853]
[1741631613566,3.54396533,118.33,118.27,0.14216157]
[1741631613856,18.64964886,118.32,118.27,73.39901853]
[1741631614174,0.16366533,118.33,118.3,73.39901853]
[1741631614484,0.16366533,118.33,118.27,0.14216157]
[1741631614663,20.0,118.3,118.19,63.463]
[1741631614851,73.39901853,118.27,118.22,73.39901853]
[1741631615043,92.04866739,118.26,118.21,73.39901853]
[1741631615341,223.84,118.25,118.23,73.39901853]
[1741631615761,223.84,118.25,118.21,0.14216157]
[1741631615970,223.84,118.25,118.24,73.5411801]
[1741631616170,223.84,118.25,118.24,73.68334167]
[1741631616468,223.9,118.3,118.25,0.14216157]
[1741631616766,227.2812,118.3,118.27,73.39901853]
[1741631616980,223.9,118.3,118.29,73.39901853]
[1741631617141,223.9,118.3,118.29,73.5411801]
[1741631617767,223.9,118.3,118.29,82.13704167]
[1741631618075,82.01695784,118.41,118.3,18.933972]
[1741631618260,82.01695784,118.41,118.36,73.39901853]
[1741631618576,20.0,118.36,118.31,0.14216157]
[1741631618748,73.39901853,118.38,118.32,73.39901853]
[1741631618950,20.0,118.36,118.34,73.39901853]
[1741631619144,93.39901853,118.35,118.3,63.463]
[1741631619350,20.0,118.35,118.32,73.39901853]
[1741631619550,20.0,118.35,118.33,73.39901853]
[1741631619768,20.0,118.35,118.31,8.59436157]
[1741631619971,73.39901853,118.38,118.33,73.39901853]
[1741631620171,0.15503961,118.39,118.36,73.39901853]
[1741631620474,3.53373961,118.39,118.36,73.39901853]
[1741631620663,3.53373961,118.39,118.34,73.39901853]
[1741631620664,20.0,118.37,118.34,73.39901853]
[1741631620888,0.15503961,118.39,118.35,73.39901853]
[1741631621078,0.15503961,118.39,118.37,73.39901853]
[1741631622482,0.15503961,118.39,118.38,174.17930906]
[1741631622684,0.15503961,118.39,118.35,63.463]
[1741631622847,0.15503961,118.39,118.38,73.39901853]
[1741631623252,0.15503961,118.39,118.36,73.5411801]
[1741631623765,0.15503961,118.39,118.36,73.39901853]
[1741631623964,0.15503961,118.39,118.38,73.39901853]
[1741631624166,0.15503961,118.39,118.38,73.68334167]
[1741631624366,0.15503961,118.39,118.38,147.0823602]
[1741631624776,3.961e-05,118.39,118.38,210.5453602]
[1741631624984,3.088e-05,118.4,118.39,0.28432314]
[1741631625157,3.088e-05,118.4,118.39,138.41251631]
[1741631625555,1.389e-05,118.42,118.41,0.28432314]
[1741631625763,0.063,118.45,118.44,8.443]
[1741631625976,0.063,118.45,118.44,218.9883602]
[1741631626265,223.78,118.48,118.45,0.28432314]
[1741631626496,223.78,118.48,118.46,93.39901853]
[1741631626773,81.8,118.58,118.49,0.28432314]
[1741631626973,20.0,118.56,118.54,73.39901853]
[1741631627189,93.39901853,118.56,118.51,73.39901853]
[1741631627387,73.39901853,118.56,118.51,73.39901853]
[1741631627578,73.39901853,118.57,118.51,73.39901853]
[1741631627774,3.3742,118.55,118.51,73.39901853]
[1741631628084,3.3742,118.55,118.5,73.39901853]
[1741631628282,76.77321853,118.55,118.5,73.39901853]
[1741631628671,73.39901853,118.52,118.47,73.39901853]
[1741631628978,297.07901853,118.51,118.45,73.39901853]
[1741631629182,223.68,118.51,118.48,73.39901853]
[1741631629485,0.17781577,118.49,118.48,0.28432314]
[1741631629681,0.17781577,118.49,118.48,73.39901853]
[1741631629879,0.17781577,118.49,118.47,73.39901853]
[1741631630180,0.17781577,118.49,118.46,73.39901853]
[1741631630565,0.17781577,118.49,118.45,73.39901853]
[1741631630778,3.55361577,118.49,118.42,88.54216157]
[1741631630984,3.55361577,118.49,118.45,73.39901853]
[1741631631170,76.9526343,118.49,118.44,73.39901853]
[1741631631879,20.0,118.46,118.44,73.39901853]
[1741631632059,73.39901853,118.45,118.4,73.39901853]
[1741631632662,173.84866739,118.47,118.42,73.39901853]
[1741631632864,81.8,118.47,118.44,73.39901853]
[1741631633065,10.69101577,118.49,118.45,73.39901853]
[1741631633274,14.06681577,118.49,118.45,73.39901853]
[1741631633586,0.17781577,118.49,118.48,73.39901853]
[1741631633896,0.17781577,118.49,118.46,73.39901853]
[1741631634265,3.55361577,118.49,118.45,73.39901853]
[1741631634500,3.55361577,118.49,118.42,8.72882314]
[1741631634501,76.9526343,118.49,118.44,73.39901853]
[1741631634706,20.0,118.46,118.42,0.28432314]
[1741631634992,20.0,118.46,118.41,88.4]
[1741631634993,20.0,118.46,118.44,73.39901853]
[1741631635306,18.82746463,118.49,118.41,0.28432314]
[1741631635463,0.17781577,118.49,118.44,73.39901853]
[1741631635664,0.17781577,118.49,118.47,73.39901853]
[1741631636282,0.17781577,118.49,118.48,73.39901853]
[1741631636980,0.17781577,118.49,118.47,73.39901853]
[1741631637374,0.17781577,118.49,118.46,73.39901853]
[1741631637577,0.17781577,118.49,118.42,29.83992314]
[1741631637780,20.0,118.47,118.43,73.39901853]
[1741631637965,20.0,118.47,118.44,73.39901853]
[1741631638269,20.0,118.47,118.45,73.39901853]
[1741631638468,20.0,118.47,118.43,8.4431]
[1741631638469,20.0,118.46,118.44,73.39901853]
[1741631638688,20.0,118.46,118.43,73.39901853]
[1741631638985,20.0,118.47,118.45,73.39901853]
[1741631639186,0.17781577,118.49,118.46,73.39901853]
[1741631639365,0.17781577,118.49,118.48,73.39901853]
[1741631639901,0.17781577,118.49,118.48,73.68334167]
[1741631640079,1.577e-05,118.49,118.48,82.12354167]
[1741631640289,1.577e-05,118.49,118.46,8.4416]
[1741631640592,1.577e-05,118.49,118.48,73.68334167]
[1741631640794,1.577e-05,118.49,118.48,73.39901853]
[1741631641174,1.577e-05,118.49,118.48,73.68334167]
[1741631641780,4.38e-05,118.5,118.49,0.28432314]
[1741631642086,0.18287903,118.52,118.5,18.933972]
[1741631642087,1.406e-05,118.52,118.5,18.933972]
[1741631642294,1.406e-05,118.52,118.51,73.68334167]
[1741631642475,20.0,118.5,118.4,95.2706]
[1741631642675,20.0,118.5,118.43,29.5531]
[1741631642999,1.406e-05,118.52,118.43,29.5531]
[1741631643174,1.406e-05,118.52,118.49,73.39901853]
[1741631643369,1.406e-05,118.52,118.45,0.28432314]
[1741631643573,20.0,118.51,118.49,73.39901853]
[1741631643775,20.0,118.5,118.46,73.39901853]
[1741631643972,20.0,118.5,118.45,73.68334167]
[1741631644206,20.0,118.5,118.46,73.39901853]
[1741631644613,20.0,118.5,118.43,96.8435]
[1741631644776,93.39901853,118.49,118.43,73.5411801]
[1741631644974,73.39901853,118.48,118.43,73.5411801]
[1741631645393,73.39901853,118.48,118.43,0.28432314]
[1741631645709,93.39901853,118.49,118.43,82.12704167]
[1741631645894,73.39901853,118.48,118.43,73.68334167]
[1741631646203,76.77511853,118.48,118.43,73.68334167]
[1741631646404,76.77511853,118.48,118.42,73.39901853]
[1741631646694,76.77511853,118.48,118.41,8.72922314]
[1741631646695,20.0,118.49,118.44,0.28432314]
[1741631646910,20.0,118.48,118.45,73.39901853]
[1741631647077,3.464,118.51,118.47,73.39901853]
[1741631647394,73.39901853,118.49,118.44,161.9411801]
[1741631647573,93.39901853,118.48,118.43,73.39901853]
[1741631647774,20.0,118.48,118.44,73.39901853]
[1741631647971,20.0,118.48,118.45,73.39901853]
[1741631648186,20.0,118.48,118.45,0.28432314]
[1741631648487,20.0,118.48,118.44,81.84201853]
[1741631648687,76.86301853,118.51,118.45,73.68334167]
[1741631649003,73.39901853,118.5,118.44,73.39901853]
[1741631649206,76.86301853,118.51,118.45,73.39901853]
[1741631649503,0.18531887,118.47,118.45,73.68334167]
[1741631649818,0.18531887,118.47,118.44,0.28432314]
[1741631650096,0.18531887,118.47,118.44,73.68334167]
[1741631650276,0.18531887,118.47,118.43,73.39901853]
[1741631650467,20.18531887,118.47,118.42,73.5411801]
[1741631650671,223.56,118.46,118.41,73.39901853]
[1741631650911,296.95901853,118.46,118.4,73.68334167]
[1741631651088,296.95901853,118.46,118.4,82.12894167]
[1741631651590,73.39901853,118.45,118.4,82.12894167]
[1741631651798,296.95901853,118.46,118.4,82.12894167]
[1741631652194,223.56,118.46,118.43,73.39901853]
[1741631652492,223.56,118.46,118.42,73.68334167]
[1741631652686,73.39901853,118.45,118.38,88.4]
[1741631652887,296.95901853,118.46,118.4,73.39901853]
[1741631653403,296.95901853,118.46,118.41,73.39901853]
[1741631653588,73.39901853,118.45,118.39,0.14216157]
[1741631653786,73.39901853,118.45,118.39,73.5411801]
[1741631654186,3.3772,118.44,118.39,81.9877801]
[1741631654382,73.39901853,118.43,118.37,73.39901853]
[1741631654584,73.39901853,118.43,118.37,81.84671853]
[1741631654796,20.0,118.41,118.38,73.39901853]
[1741631654996,73.39901853,118.44,118.38,73.39901853]
[1741631655175,73.39901853,118.44,118.39,73.39901853]
[1741631655584,20.0,118.42,118.37,29.5679]
[1741631655796,73.39901853,118.39,118.34,0.28432314]
[1741631656000,73.39901853,118.39,118.34,82.13354167]
[1741631656302,20.0,118.4,118.38,0.28432314]
[1741631656503,20.0,118.42,118.39,73.39901853]
[1741631656706,83.86291853,118.45,118.4,73.39901853]
[1741631656907,10.4639,118.45,118.4,73.39901853]
[1741631657085,83.86301853,118.45,118.4,73.39901853]
[1741631657414,223.56,118.46,118.42,73.39901853]
[1741631657624,223.56,118.46,118.43,73.39901853]
[1741631657918,300.33561853,118.46,118.41,73.39901853]